Workbook

Sheet Sheet1
B2: New Territories | C2: Quantity Sales | D2: Sales | E2: Cost | G2: Kowloon | H2: Quantity Sales | I2: Sales | J2: Cost | L2: Hong Kong Island | M2: Quantity Sales | N2: Sales | O2: Cost
B3: Product | G3: Product | L3: Product
B4: Expresso | G4: Expresso | L4: Expresso | T4: Espresso | V4: Cost
B5: Decaf Espresso | C5: 31 | D5: =C5*U5 -> 1007.5 | E5: =C5*V5 -> 471.2 | G5: Decaf Espresso | H5: 0 | I5: =H5*U5 -> 0 | J5: =H5*V5 -> 0 | L5: Decaf Espresso | M5: 58 | N5: =M5*U5 -> 1885 | O5: =M5*V5 -> 881.6 | T5: Decaf Espresso | U5: 32.5 | V5: 15.2
B6: Caffe Latte | C6: 0 | D6: =C6*U6 -> 0 | E6: =C6*V6 -> 0 | G6: Caffe Latte | H6: 0 | I6: =H6*U6 -> 0 | J6: =H6*V6 -> 0 | L6: Caffe Latte | M6: 32 | N6: =M6*U6 -> 800 | O6: =M6*V6 -> 390.4 | T6: Caffe Latte | U6: 25 | V6: 12.2
B7: Caffe Mocha | C7: 29 | D7: 878.7 | E7: 377 | G7: Caffe Mocha | H7: 13 | I7: 393.9 | J7: =H7*V7 -> 169 | L7: Caffe Mocha | M7: 23 | N7: 696.9 | O7: 299 | T7: Caffe Mocha | U7: 30.3 | V7: 13
B8: Regular Espresso | C8: 0 | D8: 0 | E8: 0 | G8: Regular Espresso | H8: 0 | I8: 0 | J8: 0 | L8: Regular Espresso | M8: 3 | N8: 66 | O8: 42.6 | T8: Regular Espresso | U8: 22 | V8: 14.2
B10: Coffee | G10: Coffee | L10: Coffee | T10: Coffee
B11: Amaretto | C11: 0 | D11: 0 | E11: 0 | G11: Amaretto | H11: 0 | I11: 0 | J11: 0 | L11: Amaretto | M11: 8 | N11: 121.6 | O11: 68 | T11: Amaretto | U11: 15.2 | V11: 8.5
B12: Decaf Irish Cream | C12: 0 | D12: 0 | E12: 0 | G12: Decaf Irish Cream | H12: 31 | I12: 1094.3 | J12: 868 | L12: Decaf Irish Cream | M12: 2 | N12: 70.6 | O12: 56 | Q12: Mean | R12: =AVERAGE(E26,J26,O26) -> 1895.54 | T12: Decaf Irish Cream | U12: 35.3 | V12: 28
B13: Columbian | C13: 26 | D13: 520 | E13: 390 | G13: Columbian | H13: 16 | I13: 320 | J13: 240 | L13: Columbian | M13: 24 | N13: 480 | O13: 360 | Q13: Min | R13: =MIN(E26,J26,O26) -> 835.7 | T13: Columbian | U13: 20 | V13: 15
Q14: Max | R14: =MAX(E26,J26,O26) -> 3024.62
B15: Herbal Tea | G15: Herbal Tea | L15: Herbal Tea | Q15: Sum | R15: =SUM(E26,J26,O26) -> 5686.62 | T15: Herbal Tea
B16: Lemon | C16: 13 | D16: 240.5 | E16: 71.5 | G16: Lemon | H16: 0 | I16: 0 | J16: 0 | L16: Lemon | M16: 38 | N16: 703 | O16: 209 | Q16: Range | R16: =O26-J26 -> 2188.92 | T16: Lemon | U16: 18.5 | V16: 5.5
B17: Chamomile | C17: 0 | D17: 0 | E17: 0 | G17: Chamomile | H17: 0 | I17: 0 | J17: 0 | L17: Chamomile | M17: 27 | N17: 567 | O17: 378 | T17: Chamomile | U17: 21 | V17: 14
B18: Mint | C18: 15 | D18: 274.8 | E18: 133.5 | G18: Mint | H18: 0 | I18: 0 | J18: 0 | L18: Mint | M18: 11 | N18: 201.52 | O18: 97.9 | T18: Mint | U18: 18.32 | V18: 8.9
B20: Tea | G20: Tea | L20: Tea | T20: Tea
B21: Green Tea | C21: 16 | D21: 280 | E21: 112 | G21: Green Tea | H21: 29 | I21: 507.5 | J21: 203 | L21: Green Tea | M21: 7 | N21: 122.5 | O21: 49 | T21: Green Tea | U21: 17.5 | V21: 7
B22: Earl Grey | C22: 0 | D22: 0 | E22: 0 | G22: Earl Grey | H22: 0 | I22: 0 | J22: 0 | L22: Earl Grey | M22: 4 | N22: 88 | O22: 56 | T22: Earl Grey | U22: 22 | V22: 14
B23: Darjeeling | C23: 18 | D23: 450 | E23: 270 | G23: Darjeeling | H23: 0 | I23: 0 | J23: 0 | L23: Darjeeling | M23: 11 | N23: 275 | O23: 165 | T23: Darjeeling | U23: 25 | V23: 15
B25: Total | C25: =SUM(C5:C8,C11:C13,C16:C18,C21:C23) -> 148 | D25: =SUM(D5:D8,D11:D13,D16:D18,D21:D23) -> 3651.5 | E25: =SUM(E5:E8,E11:E13,E16:E18,E21:E23) -> 1825.2 | G25: Total | H25: =SUM(H5:H8,H11:H13,H16:H18,H21:H23) -> 89 | I25: =SUM(I5:I8,I11:I13,I16:I18,I21:I23) -> 2315.7 | J25: 1480 | L25: Total | M25: =SUM(M5:M8,M11:M13,M16:M18,M21:M23) -> 248 | N25: =SUM(N5:N8,N11:N13,N16:N18,N21:N23) -> 6077.12 | O25: 3052.5 | Q25: Total Sales | R25: =SUM(D25,I25,N25) -> 12044.32
B26: Profit | E26: =D25-E25 -> 1826.3 | G26: Profit | J26: =I25-J25 -> 835.7 | L26: Profit | O26: =N25-O25 -> 3024.62 | Q26: Total Cost | R26: =SUM(E25,J25,O25) -> 6357.7
B27: Net profit margin | E27: =E26/D25 -> 0.500150623 | G27: Net profit margin | J27: =J26/I25 -> 0.3608843978 | L27: Net profit margin | O27: =O26/N25 -> 0.4977061503 | Q27: Total Profit | R27: =R25-R26 -> 5686.62
B30: product | C30: Total Sales | D30: Revenue | E30: Cost | F30: Profit | G30: Margin
B31: Decaf Espresso | C31: =C5+H5+M5 -> 89 | D31: =$C31*U5 -> 2892.5 | E31: =$C31*V5 -> 1352.8 | F31: =D31-E31 -> 1539.7 | G31: =F31/D31 -> 0.5323076923
B32: Caffe Latte | C32: =C6+H6+M6 -> 32 | D32: =$C32*U6 -> 800 | E32: =$C32*V6 -> 390.4 | F32: =D32-E32 -> 409.6 | G32: =F32/D32 -> 0.512
B33: Caffe Mocha | C33: 65 | D33: =C33*U7 -> 1969.5 | E33: =$C33*V7 -> 845 | F33: 1124.5 | G33: 0.5709570957
B34: Regular Espresso | C34: 3 | D34: 66 | E34: 42.6 | F34: 23.4 | G34: 0.3545454545
B35: Amaretto | C35: =C11+H11+M11 -> 8 | D35: =$C35*U11 -> 121.6 | E35: =$C35*V11 -> 68 | F35: 53.6 | G35: 0.4407894737
B36: Decaf Irish Cream | C36: =C12+H12+M12 -> 33 | D36: =C36*U12 -> 1164.9 | E36: =$C36*V12 -> 924 | F36: 240.9 | G36: 0.2067988669
B37: Columbian | C37: 66 | D37: 1320 | E37: =$C37*V13 -> 990 | F37: 330 | G37: 0.25
B38: Lemon | C38: =C16+H16+M16 -> 51 | D38: =C38*U16 -> 943.5 | E38: =$C38*V16 -> 280.5 | F38: 663 | G38: 0.7027027027
B39: Chamomile | C39: =C17+H17+M17 -> 27 | D39: =C39*U17 -> 567 | E39: =$C39*V17 -> 378 | F39: 189 | G39: 0.3333333333
B40: Mint | C40: 26 | D40: =$C40*U18 -> 476.32 | E40: =$C40*V18 -> 231.4 | F40: 244.92 | G40: 0.5141921397
B41: Green Tea | C41: =C21+H21+21 -> 66 | D41: =C41*U21 -> 1155 | E41: =$C41*V21 -> 462 | F41: 693 | G41: 0.6
B42: Earl Grey | C42: =C22+H22+21 -> 21 | D42: =C42*U22 -> 462 | E42: =$C42*V22 -> 294 | F42: 168 | G42: 0.3636363636
B43: Darjeeling | C43: 39 | D43: 975 | E43: =$C43*V23 -> 585 | F43: 390 | G43: 0.4
G47: Frequency Table
G48: 52.5-131.5 | H48: 5
G49: 131.5-210.5 | H49: 21
G50: 210.5-289.5 | H50: 15
G51: 289.5-368.5 | H51: 11
G52: 368.5-447.5 | H52: 4

Sheet Sheet2
A1: Weekly sales report on 22/1-28/1
A2: New Territories | B2: Unit sales | D2: Kowloon | G2: Hong Kong Island | J2: Total sales
A3: Product | D3: Product | G3: Product | J3: Product | N3: Price | O3: Cost
A4: Expresso | D4: Expresso | G4: Expresso | J4: Expresso | M4: Decaf Espresso | N4: 32.5 | O4: 15.2
A5: Decaf Espresso | B5: 9 | D5: Decaf Espresso | E5: 0 | G5: Decaf Espresso | H5: 10 | J5: Decaf Espresso | K5: =SUM(B5,E5,J5) -> 9 | M5: Caffe Latte | N5: 25 | O5: 12.2
A6: Caffe Latte | B6: 0 | D6: Caffe Latte | E6: 0 | G6: Caffe Latte | H6: 0 | J6: Caffe Latte | K6: =SUM(B6,E6,J6) -> 0 | M6: Caffe Mocha | N6: 30.3 | O6: 13
A7: Caffe Mocha | B7: 6 | D7: Caffe Mocha | E7: 3 | G7: Caffe Mocha | H7: 0 | J7: Caffe Mocha | K7: 9 | M7: Regular Espresso | N7: 22 | O7: 14.2
A8: Regular Espresso | B8: 0 | D8: Regular Espresso | E8: 0 | G8: Regular Espresso | H8: 0 | J8: Regular Espresso | K8: 0 | M8: Amaretto | N8: 15.2 | O8: 8.5
M9: Decaf Irish Cream | N9: 35.3 | O9: 28
A10: Coffee | D10: Coffee | G10: Coffee | J10: Coffee | M10: Columbian | N10: 20 | O10: 15
A11: Amaretto | B11: 0 | D11: Amaretto | E11: 0 | G11: Amaretto | H11: 4 | J11: Amaretto | K11: 0 | M11: Lemon | N11: 18.5 | O11: 5.5
A12: Decaf Irish Cream | B12: 0 | D12: Decaf Irish Cream | E12: 6 | G12: Decaf Irish Cream | H12: 2 | J12: Decaf Irish Cream | K12: 6 | M12: Chamomile | N12: 21 | O12: 14
A13: Columbian | B13: 0 | D13: Columbian | E13: 1 | G13: Columbian | H13: 11 | J13: Columbian | K13: 1 | M13: Mint | N13: 18.32 | O13: 8.9
M14: Green Tea | N14: 17.5 | O14: 7
A15: Herbal Tea | D15: Herbal Tea | G15: Herbal Tea | J15: Herbal Tea | M15: Earl Grey | N15: 22 | O15: 14
A16: Lemon | B16: 3 | D16: Lemon | E16: 0 | G16: Lemon | H16: 9 | J16: Lemon | K16: 3 | M16: Darjeeling | N16: 25 | O16: 15
A17: Chamomile | B17: 0 | D17: Chamomile | E17: 0 | G17: Chamomile | H17: 1 | J17: Chamomile | K17: 0
A18: Mint | B18: 7 | D18: Mint | E18: 0 | G18: Mint | H18: 4 | J18: Mint | K18: 7
A20: Tea | D20: Tea | G20: Tea | J20: Tea
A21: Green Tea | B21: 5 | D21: Green Tea | E21: 7 | G21: Green Tea | H21: 4 | J21: Green Tea | K21: 12
A22: Earl Grey | B22: 0 | D22: Earl Grey | E22: 0 | G22: Earl Grey | H22: 0 | J22: Earl Grey | K22: 0
A23: Darjeeling | B23: 0 | D23: Darjeeling | E23: 0 | G23: Darjeeling | H23: 0 | J23: Darjeeling | K23: 0
A25: Total | B25: =SUM(B5:B23) -> 30 | D25: Total | E25: =SUM(E5:E23) -> 17 | G25: Total units | H25: =SUM(H5:H23) -> 45 | J25: Total units | K25: 47
A28: Weekly sales report on 22/1-28/1
A29: Total sales | H29: Frequency | I29: Profit | J29: Mean | K29: =AVERAGE(I30:I33) -> 147.785
A30: Product | C30: Total sales | D30: Total cost | E30: Profit | G30: Expresso | H30: 18 | I30: =E32+E34 -> 311.4 | J30: Max | K30: =MAX(I30:I33) -> 311.4
A31: Expresso | B31: 18 | G31: Coffee | H31: 7 | I31: =E39+E40 -> 48.8 | J31: Min | K31: =MIN(I30:I33) -> 48.8
A32: Decaf Espresso | B32: 9 | C32: 292.5 | D32: 136.8 | E32: 155.7 | G32: Herbal Tea | H32: 10 | I32: =E43+E45 -> 104.94
A33: Caffe Latte | B33: 0 | C33: 0 | D33: 0 | E33: 0 | G33: Tea | H33: 12 | I33: =E48 -> 126
A34: Caffe Mocha | B34: 9 | C34: 272.7 | D34: 117 | E34: 155.7
A35: Regular Espresso | B35: 0 | C35: 0 | D35: 0 | E35: 0
A37: Coffee | B37: 7
A38: Amaretto | B38: 0 | C38: 0 | D38: 0 | E38: 0
A39: Decaf Irish Cream | B39: 6 | C39: 211.8 | D39: 168 | E39: 43.8
A40: Columbian | B40: 1 | C40: 20 | D40: 15 | E40: 5
A42: Herbal Tea | B42: 10
A43: Lemon | B43: 3 | C43: 55.5 | D43: 16.5 | E43: 39
A44: Chamomile | B44: 0 | C44: 0 | D44: 0 | E44: 0
A45: Mint | B45: 7 | C45: 128.24 | D45: 62.3 | E45: 65.94
A47: Tea | B47: 12
A48: Green Tea | B48: 12 | C48: 210 | D48: 84 | E48: 126
A49: Earl Grey | B49: 0 | C49: 0 | D49: 0 | E49: 0
A50: Darjeeling | B50: 0 | C50: 0 | D50: 0 | E50: 0
A51: Total | C51: 1190.74 | D51: 599.6 | E51: 591.14

Sheet Sheet3
E20: Total revenue by Member ID
E24: 120
E28: 312.5
E31: 440
E33: 195
E36: 220.9
E39: 220.9
E41: 157.5
E43: 122.5
E46: 230.9
E50: 226.2
E55: 362.7
E59: 240
E64: 205
E68: 235.6
E72: 362.7
E75: 378.3
E79: 249.98
E83: 395.6
E87: 298.82
E90: 319
E91: 67
E94: 249.98
E97: 183.2
E99: 150
E101: 175
E106: 197.5
E109: 355
E111: 325
E115: 52.5
E117: 160.5
E118: 260.9
E121: 191
E124: 213.7
E127: 166.5
E129: 195
E131: 149.9
E134: 161.64
E137: 161.64
E138: 291.1
E142: 298.5
E145: 291.1
E149: 232
E151: 325
E153: 123.28
E156: 160.5
E158: 250
E162: 195
E165: 74.4
E167: 149.9
E169: 403.88
E172: 260.9
E173: 213.7
E176: 193.22
E177: 149.9
E180: 242.5
E181: 161.64
E184: 167
